fUSD/lending_fUSD_20240403
["ID","MTS","AMOUNT","RATE_DAILY","PERIOD"]
[321414835,1712175040325,-1500.0,0.00023388,2]
[321414836,1712175040335,-1500.0,0.00023391,2]
[321414837,1712175040344,-1500.0,0.00023392,2]
[321414838,1712175040353,-150.0,0.00023396,2]
[321414839,1712175040362,-1500.0,0.00023396,2]
[321414840,1712175040372,-1500.0,0.00023397,2]
[321414841,1712175040381,-935.37571335,0.000234,2]
[321414842,1712175040391,-774.85155503,0.000234,2]
[321414843,1712175040400,-458.94768378,0.000234,2]
[321414844,1712175040410,-458.94768366,0.000234,2]
[321414845,1712175040419,-458.94768366,0.000234,2]
[321414846,1712175040428,-458.94768366,0.000234,2]
[321414847,1712175040438,-458.94768366,0.000234,2]
[321414848,1712175040447,-458.94768366,0.000234,2]
[321414849,1712175040456,-458.94768366,0.000234,2]
[321414850,1712175040466,-458.94768366,0.000234,2]
[321414851,1712175040479,-150.0,0.0002341,2]
[321414852,1712175040493,-1500.0,0.00023412,2]
[321414853,1712175040503,-1500.0,0.00023426,2]
[321414854,1712175040512,-1500.0,0.00023432,2]
[321414855,1712175040523,-1500.0,0.00023435,2]
[321414856,1712175040532,-158.73,0.00023436,2]
[321414857,1712175040542,-300.0,0.00023437,2]
[321414858,1712175040552,-150.0,0.00023439,2]
[321414859,1712175040563,-1500.0,0.00023443,2]
[321414860,1712175040573,-1500.0,0.00023446,2]
[321414861,1712175040582,-150.0,0.00023447,2]
[321414862,1712175040592,-1500.0,0.00023448,2]
[321414863,1712175040601,-300.0,0.00023451,2]
[321414864,1712175040610,-1500.0,0.00023454,2]
[321414865,1712175040619,-1500.0,0.00023463,2]
[321414866,1712175040629,-8594.3123492,0.00023465,2]
[321414867,1712175040638,-2047.13385281,0.00023468,2]
[321414868,1712175040648,-703.92171334,0.00023468,2]
[321414869,1712175040657,-1500.0,0.00023468,2]
[321414870,1712175040666,-500.0,0.00023468,2]
[321414871,1712175040675,-160.72367697,0.00023468,2]
[321414872,1712175040685,-155.30236405,0.00023468,2]
[321414873,1712175040694,-792.50178317,0.00023469,2]
[321414874,1712175040704,-150.0,0.0002347,2]
[321414875,1712175040713,-60037.5749333,0.0002347,2]
[321414876,1712175040722,-47034.67935969,0.0002347,2]
[321414877,1712175040915,-982.66,0.0002347,2]
[321414878,1712175040926,-1799.94670493,0.0002347,2]
[321414879,1712175040938,-1499.97141644,0.0002347,2]
[321414880,1712175040950,-460.74799849,0.0002347,2]
[321414896,1712175043304,-2.153138,0.0002347,2]
[321414897,1712175043398,-18034.58858245,0.0002347,2]
[321414899,1712175043407,-22387.2578862,0.0002347,2]
[321414901,1712175043417,-28699.8810047,0.0002347,2]
[321414903,1712175043427,-7640.27782298,0.0002347,2]
[321414905,1712175043438,-757.60525555,0.0002347,2]
[321415029,1712175061374,1693.43178652,0.0002231,2]
[321415030,1712175066289,2557.11204271,0.00022354,2]
[321415031,1712175113309,204.27628637,0.00023386,4]
[321415032,1712175114726,158.73,0.00022525,2]
[321415033,1712175119983,155.0,0.00022354,2]
[321415034,1712175133844,155.64423373,0.00022354,2]
[321415035,1712175149907,379.91,0.00022356,2]
[321415036,1712175219595,296.07439376,0.00022356,2]
[321415037,1712175236831,168.72,0.00022334,2]
[321415038,1712175244146,250.0,0.00022355,2]
[321415039,1712175264616,156.54485184,0.00022243,2]
[321415040,1712175293954,200.0,0.00022328,2]
[321415041,1712175296623,23900.0,0.00022334,2]
[321415042,1712175298767,1200.0,0.00031,60]
[321415043,1712175328809,1200.0,0.00032,120]
[321415044,1712175338212,228.96,0.00022355,2]
[321415045,1712175349815,815.85,0.00020416,2]
[321415046,1712175350023,815.85,0.0002268,2]
[321415047,1712175419167,512.12,0.00022357,2]
[321415048,1712175422795,639.33,0.00022357,2]
[321415049,1712175468650,242.83,0.00022357,2]
[321415050,1712175608589,158.02,0.00022515,2]
[321415051,1712175608830,158.02,0.00022599,2]
[321415052,1712175609122,158.02,0.00022683,2]
[321415053,1712175609283,158.02,0.00022767,2]
[321415054,1712175609496,158.02,0.0002285,2]
[321415055,1712175609744,158.02,0.00022934,2]
[321415056,1712175626222,1210.3,0.00022338,2]
[321415057,1712175637364,414.32,0.00022338,2]
[321415058,1712175684289,150.0,0.00022348,2]
[321415059,1712175732983,750.0,0.00021,3]
[321415060,1712175733903,800.0,0.00023,3]
[321415061,1712175782770,170.91,0.00022334,2]
[321415062,1712175810307,734.26,0.00020419,2]
[321415063,1712175810544,734.26,0.00022683,2]
[321415064,1712175893108,590.3,0.00022333,2]
[321415065,1712175895625,569.24,0.00022333,2]
[321415066,1712175969005,242.83,0.00022331,2]
[321415067,1712176016167,250.0,0.00022332,2]
[321415068,1712176104428,806.53,0.00022328,2]
[321415069,1712176120180,158.02,0.00022502,2]
[321415070,1712176120575,158.02,0.00022649,2]
[321415071,1712176120800,158.02,0.00022795,2]
[321415072,1712176121049,158.02,0.00022942,2]
[321415080,1712176233034,-150.0,0.00023015,2]
[321415081,1712176233045,-8056.12736182,0.00023016,2]
[321415082,1712176233057,-1403.19754049,0.00023016,2]
[321415083,1712176233114,-565.25689159,0.00023016,2]
[321415084,1712176233127,-346.48303694,0.00023016,2]
[321415085,1712176233138,-896.99068152,0.00023016,2]
[321415086,1712176233150,-401.82437314,0.00023016,2]
[321415087,1712176233161,-781.95019923,0.00023016,2]
[321415088,1712176233173,-1806.00192747,0.00023016,2]
[321415089,1712176233184,-762.1913702,0.00023016,2]
[321415090,1712176233196,-667.36237526,0.00023016,2]
[321415091,1712176233208,-5966.34078036,0.00023016,2]
[321415092,1712176233236,-1086.40463059,0.00023016,2]
[321415093,1712176233246,-5683.32228449,0.00023017,2]
[321415094,1712176233258,-2460.65607465,0.00023017,2]
[321415095,1712176233267,-169.36,0.00023025,2]
[321415096,1712176233276,-168.44,0.00023043,2]
[321415097,1712176233287,-158.02,0.00023089,2]
[321415098,1712176233296,-150.0,0.00023212,2]
[321415099,1712176233305,-150.0,0.00023214,2]
[321415100,1712176233314,-150.0,0.00023216,2]
[321415101,1712176233323,-150.0,0.00023217,2]
[321415102,1712176233332,-150.0,0.00023228,2]
[321415103,1712176233341,-150.0,0.0002323,2]
[321415104,1712176233351,-150.0,0.0002323,2]
[321415105,1712176233360,-150.0,0.00023231,2]
[321415106,1712176233369,-150.0,0.00023232,2]
[321415107,1712176233378,-150.0,0.00023234,2]
[321415108,1712176233388,-150.0,0.00023234,2]
[321415109,1712176233397,-150.0,0.00023235,2]
[321415110,1712176233407,-158.02,0.00023235,2]
[321415112,1712176233416,-300.0,0.00023238,2]
[321415113,1712176233426,-150.99,0.0002324,2]
[321415114,1712176233435,-499.99,0.0002324,2]
[321415115,1712176233444,-654.23768,0.0002324,2]
[321415116,1712176233454,-150.0,0.00023243,2]
[321415117,1712176233463,-150.0,0.00023244,2]
[321415118,1712176233473,-1316.46915017,0.00023248,2]
[321415119,1712176233482,-150.0,0.00023249,2]
[321415120,1712176233493,-150.0,0.00023251,2]
[321415121,1712176233502,-300.0,0.00023253,2]
[321415122,1712176233513,-150.0,0.00023253,2]
[321415123,1712176233522,-150.0,0.00023253,2]
[321415124,1712176233533,-150.0,0.00023261,2]
[321415125,1712176233542,-150.0,0.00023263,2]
[321415126,1712176233551,-150.0,0.00023266,2]
[321415127,1712176233561,-150.0,0.00023267,2]
[321415128,1712176233571,-150.0,0.00023268,2]
[321415129,1712176233581,-150.0,0.00023274,2]
[321415130,1712176233591,-150.0,0.00023279,2]
[321415131,1712176233600,-150.0,0.00023281,2]
[321415132,1712176233610,-500.0,0.00023282,2]
[321415133,1712176233619,-150.0,0.00023286,2]
[321415134,1712176233629,-150.0,0.00023286,2]
[321415135,1712176233638,-150.0,0.00023286,2]
[321415136,1712176233649,-150.0,0.0002329,2]
[321415137,1712176233658,-150.0,0.00023292,2]
[321415138,1712176233667,-12667.197504,0.000233,2]
[321415139,1712176233676,-255.1913,0.000233,2]
[321415140,1712176233685,-195.14866254,0.000233,2]
[321415141,1712176233694,-150.0,0.00023303,2]
[321415142,1712176233703,-150.0,0.00023305,2]
[321415143,1712176233713,-150.0,0.00023307,2]
[321415144,1712176233722,-150.0,0.00023308,2]
[321415145,1712176233731,-150.0,0.0002331,2]
[321415146,1712176233740,-150.0,0.00023312,2]
[321415147,1712176233750,-150.0,0.00023315,2]
[321415148,1712176233759,-150.0,0.00023316,2]
[321415149,1712176233769,-150.0,0.00023317,2]
[321415150,1712176233778,-150.0,0.00023318,2]
[321415151,1712176233788,-150.0,0.00023318,2]
[321415152,1712176233799,-150.0,0.00023322,2]
[321415153,1712176233810,-150.0,0.00023322,2]
[321415154,1712176233820,-195.14866254,0.00023325,2]
[321415155,1712176233831,-150.0,0.00023328,2]
[321415156,1712176233841,-150.0,0.00023328,2]
[321415157,1712176233851,-150.0,0.00023329,2]
[321415158,1712176233861,-150.0,0.00023331,2]
[321415159,1712176233870,-150.0,0.00023331,2]
[321415160,1712176233881,-150.0,0.00023332,2]
[321415161,1712176233891,-150.0,0.00023343,2]
[321415162,1712176233902,-150.0,0.00023346,2]
[321415163,1712176233911,-150.0,0.00023348,2]
[321415164,1712176233921,-150.0,0.00023349,2]
[321415165,1712176233930,-195.14866254,0.00023349,2]
[321415166,1712176233940,-150.0,0.0002335,2]
[321415167,1712176233949,-150.0,0.00023353,2]
[321415168,1712176233959,-150.0,0.00023356,2]
[321415169,1712176233969,-150.0,0.00023357,2]
[321415170,1712176233980,-150.0,0.00023359,2]
[321415171,1712176233990,-2959.75391496,0.0002336,2]
[321415172,1712176234000,-496.57162669,0.00023361,2]
[321415173,1712176234010,-150.0,0.00023362,2]
[321415174,1712176234019,-150.0,0.00023363,2]
[321415175,1712176234030,-150.0,0.00023364,2]
[321415176,1712176234040,-496.57162668,0.00023365,2]
[321415177,1712176234050,-150.0,0.00023367,2]
[321415178,1712176234060,-150.0,0.00023368,2]
[321415179,1712176234070,-500.0,0.00023369,2]
[321415180,1712176234080,-496.57162668,0.00023369,2]
[321415181,1712176234090,-150.0,0.0002337,2]
[321415182,1712176234100,-3664.8557207,0.0002337,2]
[321415183,1712176234298,-33105.93085804,0.0002337,2]
[321415184,1712176234312,-259.86200001,0.0002337,2]
[321415185,1712176234325,-357.4799971,0.0002337,2]
[321415186,1712176234336,-418.90217464,0.0002337,2]
[321415187,1712176234381,-5599.83037021,0.0002337,2]
[321415188,1712176234391,-2500.0,0.0002337,2]
[321415189,1712176234400,-3664.85572062,0.00023373,2]
[321415190,1712176234410,-496.57162668,0.00023373,2]
[321415191,1712176234419,-195.14866254,0.00023374,2]
[321415192,1712176234428,-3664.85572062,0.00023376,2]
[321415193,1712176234438,-496.57162668,0.00023377,2]
[321415194,1712176234447,-3664.85572062,0.00023379,2]
[321415195,1712176234457,-496.57162668,0.00023382,2]
[321415196,1712176234466,-158.02,0.00023382,2]
[321415197,1712176234475,-987.22707918,0.00023382,2]
[321415198,1712176234484,-3664.85572062,0.00023382,2]
[321415199,1712176234494,-3664.85572062,0.00023386,2]
[321415200,1712176234503,-496.57162668,0.00023386,2]
[321415201,1712176234513,-2500.0,0.00023386,2]
[321415202,1712176234522,-150.0,0.00023388,2]
[321415203,1712176234533,-3664.85572062,0.00023389,2]
[321415204,1712176234542,-496.57162668,0.0002339,2]
[321415205,1712176234551,-3664.85572062,0.00023392,2]
[321415206,1712176234561,-496.57162668,0.00023394,2]
[321415207,1712176234571,-150.0,0.00023394,2]
[321415208,1712176234580,-3664.85572062,0.00023395,2]
[321415209,1712176234590,-153.75686717,0.00023398,2]
[321415210,1712176234600,-3664.85572062,0.00023398,2]
[321415211,1712176234609,-496.57162668,0.00023398,2]
[321415212,1712176234618,-1264.98912815,0.00023398,2]
[321415213,1712176234628,-195.14866254,0.00023398,2]
[321415214,1712176234637,-275.36861031,0.000234,2]
[321415215,1712176234647,-275.36861019,0.000234,2]
[321415216,1712176234656,-275.36861019,0.000234,2]
[321415217,1712176234665,-275.36861019,0.000234,2]
[321415218,1712176234674,-275.36861019,0.000234,2]
[321415219,1712176234684,-275.36861019,0.000234,2]
[321415220,1712176234694,-275.36861019,0.000234,2]
[321415221,1712176234703,-275.36861019,0.000234,2]
[321415222,1712176234712,-275.36861019,0.000234,2]
[321415223,1712176234722,-275.36861019,0.000234,2]
[321415224,1712176234731,-275.36861019,0.000234,2]
[321415225,1712176234741,-275.36861019,0.000234,2]
[321415226,1712176234750,-275.36861019,0.000234,2]
[321415227,1712176234759,-275.36861019,0.000234,2]
[321415228,1712176234768,-275.36861019,0.000234,2]
[321415229,1712176234778,-275.36861019,0.000234,2]
[321415230,1712176234787,-275.36861019,0.000234,2]
[321415231,1712176234801,-275.36861019,0.000234,2]
[321415232,1712176234810,-275.36861019,0.000234,2]
[321415233,1712176234820,-275.36861019,0.000234,2]
[321415234,1712176234831,-150.0,0.00023406,2]
[321415235,1712176234842,-150.0,0.00023407,2]
[321415236,1712176234851,-150.0,0.00023408,2]
[321415237,1712176234861,-150.0,0.00023409,2]
[321415238,1712176234874,-150.0,0.0002341,2]
[321415239,1712176234884,-300.0,0.00023411,2]
[321415240,1712176234895,-150.0,0.00023414,2]
[321415241,1712176234905,-150.0,0.00023418,2]
[321415242,1712176234914,-150.0,0.00023419,2]
[321415243,1712176234924,-150.0,0.00023424,2]
[321415244,1712176234933,-150.0,0.00023427,2]
[321415245,1712176234942,-150.0,0.00023428,2]
[321415246,1712176234951,-150.0,0.00023431,2]
[321415247,1712176234961,-150.0,0.00023432,2]
[321415248,1712176234970,-150.0,0.00023434,2]
[321415249,1712176234979,-150.0,0.00023438,2]
[321415250,1712176234990,-150.0,0.00023445,2]
[321415251,1712176235003,-150.0,0.00023453,2]
[321415252,1712176235012,-150.0,0.00023454,2]
[321415253,1712176235021,-150.0,0.00023454,2]
[321415254,1712176235032,-150.0,0.00023456,2]
[321415255,1712176235041,-150.0,0.00023458,2]
[321415256,1712176235050,-2007.2082821,0.0002346,2]
[321415257,1712176235059,-2840.1842076,0.0002346,2]
[321415258,1712176235068,-33033.5199999,0.0002346,2]
[321415259,1712176235078,-15061.9525828,0.0002346,2]
[321415260,1712176235087,-7371.3240974,0.00023461,2]
[321415261,1712176235097,-150.0,0.00023461,2]
[321415262,1712176235107,-150.0,0.00023463,2]
[321415263,1712176235117,-150.0,0.00023463,2]
[321415264,1712176235126,-150.0,0.00023465,2]
[321415265,1712176235136,-150.0,0.00023469,2]
[321415266,1712176235146,-8554.7025848,0.0002347,2]
[321415267,1712176235155,-9738.0810722,0.0002347,2]
[321415268,1712176235165,-2295.1990357,0.0002347,2]
[321415269,1712176235174,-3247.6888982,0.0002347,2]
[321415270,1712176235184,-37773.1119999,0.0002347,2]
[321415271,1712176235193,-150.0,0.00023471,2]
[321415272,1712176235203,-150.0,0.00023473,2]
[321415273,1712176235213,-150.0,0.00023474,2]
[321415274,1712176235222,-150.0,0.00023475,2]
[321415275,1712176235231,-150.0,0.00023476,2]
[321415276,1712176235240,-150.0,0.00023477,2]
[321415277,1712176235251,-150.0,0.00023482,2]
[321415278,1712176235261,-196.41457958,0.00023484,2]
[321415279,1712176235270,-446.43690151,0.00023484,2]
[321415280,1712176235279,-155.0,0.00023484,2]
[321415281,1712176235288,-237.08020686,0.00023484,2]
[321415282,1712176235298,-276.00153917,0.00023484,2]
[321415283,1712176235308,-186.26915594,0.00023484,2]
[321415284,1712176235317,-502.14451424,0.00023484,2]
[321415285,1712176235326,-2453.01858718,0.00023484,2]
[321415286,1712176235336,-403.1819564,0.00023484,2]
[321415287,1712176235345,-205.86860361,0.00023484,2]
[321415288,1712176235355,-13593.24005819,0.00023484,2]
[321415289,1712176235364,-156.86509409,0.00023485,2]
[321415290,1712176235373,-1100.95473359,0.00023485,2]
[321415291,1712176235383,-225.74682762,0.00023485,2]
[321415292,1712176235393,-782.26633042,0.00023485,2]
[321415293,1712176235402,-201214.54019694,0.00023486,2]
[321415294,1712176236206,-178754.42002301,0.00023486,2]
[321415295,1712176236218,-6130.43300183,0.00023486,2]
[321415298,1712176238018,-657.61,0.0002347,2]
[321415299,1712176238191,-4761.48093999,0.0002347,2]
[321415309,1712176240184,-1183.40801058,0.0002347,2]
[321415310,1712176240196,-353.84999994,0.0002347,2]
[321415311,1712176240207,-1575.5851132,0.0002347,2]
[321415312,1712176240219,-331.43296531,0.0002347,2]
[321415313,1712176240267,-8359.64831568,0.0002347,2]
[321415314,1712176240276,-722.09199731,0.00023485,2]
[321415315,1712176240288,-429080.84804055,0.00023486,2]
[321415316,1712176240439,-508.86947687,0.00023486,2]
[321415317,1712176240451,-31441.61043604,0.00023486,2]
[321415325,1712176253464,596.41142944,0.00023484,60]
[321415326,1712176284807,680.11,0.00021367,2]
[321415327,1712176288500,167.01,0.00022998,2]
[321415328,1712176320514,150.0,0.00022743,2]
[321415329,1712176325726,415.74,0.00022709,2]
[321415330,1712176384020,527.76,0.00022527,2]
[321415331,1712176391629,285.813,0.00022709,2]
[321415332,1712176392523,179.08899049,0.00022709,2]
[321415333,1712176394682,1137.24728469,0.00022709,2]
[321415334,1712176399990,328.08795543,0.00022709,2]
[321415335,1712176407073,291.82638217,0.00022709,2]
[321415336,1712176408487,179.08899049,0.00022709,2]
[321415337,1712176409643,1110.45511479,0.00022709,2]
[321415338,1712176422913,291.82638217,0.00022709,2]
[321415339,1712176426485,179.08899049,0.00022709,2]
[321415340,1712176432197,23900.0,0.00022346,2]
[321415341,1712176436544,328.86,0.00022346,2]
[321415342,1712176446386,200.0,0.00022306,2]
[321415343,1712176448186,179.08899049,0.00022709,2]
[321415344,1712176462492,179.08899049,0.00022709,2]
[321415345,1712176482492,232.30169475,0.00022709,2]
[321415346,1712176499709,155.0,0.00023,2]
[321415347,1712176500205,268.80995107,0.00023,2]
[321415348,1712176511892,217.28613312,0.00023,2]
[321415349,1712176513644,4316.65932501,0.00023,2]
[321415350,1712176517757,500.0,0.00023,2]
[321415351,1712176522568,681.69672022,0.00023,2]
[321415352,1712176523310,485.58579165,0.00023,2]
[321415353,1712176526798,425.64683878,0.00023,2]
[321415354,1712176527240,500.0,0.00022328,2]
[321415355,1712176531343,585.14,0.00022319,2]
[321415356,1712176540179,4462.24642716,0.00023,2]
[321415357,1712176542689,10534.28692559,0.00023,2]
[321415358,1712176543661,180.51744543,0.00023,2]
[321415359,1712176567021,1793.087488,0.00022903,2]
[321415360,1712176622024,979.04,0.00022301,2]
[321415361,1712176649496,154.93,0.00022473,2]
[321415362,1712176649724,154.93,0.0002259,2]
[321415363,1712176649963,154.93,0.00022707,2]
[321415364,1712176650211,154.93,0.00022824,2]
[321415365,1712176650463,154.93,0.00022941,2]
[321415366,1712176677046,203.43632454,0.00022917,2]
[321415367,1712176778253,404.56,0.0002248,2]
[321415368,1712176800178,155.7,0.00022296,2]
[321415369,1712176845325,646.1,0.00020383,2]
[321415370,1712176845429,646.1,0.00022647,2]
[321415371,1712176881134,250.0,0.00022288,2]
[321415372,1712176897040,577.79,0.0002229,2]
[321415373,1712176902381,3302.33334658,0.00023,2]
[321415380,1712176921471,164.43,0.0002229,2]
[321415397,1712176984393,15153.57,0.00022301,2]
[321415398,1712177021897,150.46002837,0.00022904,2]
[321415399,1712177028113,8894.7996,0.0002291,2]
[321415400,1712177079859,500.0,0.00022999,2]
[321415401,1712177087452,22740.13116861,0.00022999,2]
[321415402,1712177101874,150.0,0.00023,2]
[321415403,1712177102897,155.0,0.00022999,2]
[321415404,1712177110631,10534.28692559,0.00022999,2]
[321415405,1712177115963,652.36,0.00022289,2]
[321415406,1712177137446,474.36,0.00022292,2]
[321415407,1712177145892,173.79,0.00022293,2]
[321415408,1712177156365,500.0,0.00022999,2]
[321415409,1712177159963,22740.13116861,0.00022999,2]
[321415410,1712177193321,200.0,0.00022292,2]
[321415411,1712177212379,154.93,0.00022468,2]
[321415412,1712177212593,154.93,0.00022703,2]
[321415413,1712177213010,154.93,0.00022937,2]
[321416270,1712177365982,596.68,0.00020373,2]
[321416271,1712177366249,596.68,0.00022637,2]
[321416312,1712177432427,-21956.81837282,0.0002301,2]
[321416314,1712177432456,537.76,0.00022291,2]
[321416383,1712177438248,-783.31279579,0.0002301,2]
[321416385,1712177438257,-1648.72235751,0.00023011,2]
[321416391,1712177438310,-2667.9369675,0.00023011,2]
[321416393,1712177438320,-7727.0630325,0.00023017,2]
[321416403,1712177438421,-16353.98279925,0.00023017,2]
[321416410,1712177438480,-611.25020912,0.00023017,2]
[321416413,1712177438493,-677.22419515,0.00023017,2]
[321416415,1712177438504,-2234.88506693,0.00023017,2]
[321416425,1712177438595,-16137.59469705,0.00023017,2]
[321416427,1712177438604,-300.0,0.00023018,2]
[321416429,1712177438614,-801.21665498,0.00023118,2]
[321416431,1712177438624,-7226.7056,0.00023159,2]
[321416433,1712177438633,-154.93,0.00023171,2]
[321416434,1712177438642,-1874.03869476,0.00023186,2]
[321416436,1712177438652,-1010.3805,0.00023198,2]
[321416439,1712177438661,-158.44432579,0.00023199,2]
[321416442,1712177438670,-526.72281182,0.00023199,2]
[321416444,1712177438680,-150.99,0.00023199,2]
[321416446,1712177438689,-499.99,0.00023199,2]
[321416448,1712177438698,-150.0,0.00023217,2]
[321416450,1712177438707,-150.0,0.00023219,2]
[321416453,1712177438717,-526.72281173,0.0002322,2]
[321416456,1712177438726,-150.0,0.00023229,2]
[321416458,1712177438735,-150.0,0.00023232,2]
[321416460,1712177438745,-150.0,0.00023234,2]
[321416462,1712177438754,-150.0,0.00023234,2]
[321416464,1712177438764,-150.0,0.00023235,2]
[321416466,1712177438774,-150.0,0.00023235,2]
[321416468,1712177438783,-150.0,0.00023237,2]
[321416470,1712177438793,-526.72281173,0.00023241,2]
[321416472,1712177438804,-150.0,0.00023243,2]
[321416474,1712177438814,-150.0,0.00023243,2]
[321416476,1712177438824,-158.44432576,0.00023246,2]
[321416478,1712177438835,-150.0,0.00023247,2]
[321416480,1712177438844,-150.0,0.00023249,2]
[321416482,1712177438854,-150.0,0.00023249,2]
[321416484,1712177438863,-150.0,0.00023257,2]
[321416486,1712177438873,-150.0,0.00023257,2]
[321416488,1712177438883,-6515.478,0.00023257,2]
[321416490,1712177438892,-1853.0417,0.00023258,2]
[321416492,1712177438902,-813.6427,0.00023258,2]
[321416494,1712177438911,-150.0,0.00023258,2]
[321416496,1712177438921,-2500.0,0.00023259,2]
[321416498,1712177438930,-200.0,0.0002326,2]
[321416500,1712177438940,-10395.0,0.0002326,2]
[321416502,1712177438949,-156.9530182,0.0002326,2]
[321416504,1712177438958,-1316.34244458,0.0002326,2]
[321416507,1712177438968,-150.0,0.00023261,2]
[321416510,1712177438978,-795.3314,0.00023261,2]
[321416514,1712177438987,-526.72281173,0.00023261,2]
[321416516,1712177438997,-155.18934165,0.00023262,2]
[321416518,1712177439006,-150.0,0.00023263,2]
[321416519,1712177439015,-150.0,0.00023266,2]
[321416521,1712177439025,-169.69442563,0.00023267,2]
[321416523,1712177439034,-150.0,0.0002327,2]
[321416525,1712177439043,-150.0,0.00023277,2]
[321416528,1712177439057,-150.0,0.00023278,2]
[321416530,1712177439067,-526.72281173,0.00023282,2]
[321416532,1712177439076,-500.0,0.00023282,2]
[321416534,1712177439086,-150.0,0.00023284,2]
[321416536,1712177439096,-150.0,0.00023289,2]
[321416537,1712177439106,-200.0,0.0002329,2]
[321416538,1712177439116,-800.0,0.0002329,2]
[321416539,1712177439126,-500.0,0.0002329,2]
[321416540,1712177439136,-200.0,0.0002329,2]
[321416542,1712177439148,-150.0,0.00023291,2]
[321416543,1712177439157,-156.95301816,0.00023292,2]
[321416544,1712177439166,-1316.34244458,0.00023292,2]
[321416545,1712177439176,-158.44432576,0.00023293,2]
[321416546,1712177439185,-150.0,0.00023294,2]
[321416547,1712177439196,-150.0,0.00023296,2]
[321416548,1712177439205,-150.0,0.00023297,2]
[321416549,1712177439215,-200.0,0.00023297,2]
[321416550,1712177439224,-800.0,0.00023297,2]
[321416551,1712177439236,-500.0,0.00023297,2]
[321416552,1712177439245,-200.0,0.00023297,2]
[321416553,1712177439255,-1235.9342,0.00023298,2]
[321416554,1712177439264,-9961.578,0.00023298,2]
[321416555,1712177439273,-6453.4356,0.00023298,2]
[321416556,1712177439283,-26295.1219,0.00023298,2]
[321416557,1712177439292,-150.0,0.00023299,2]
[321416558,1712177439304,-150.0,0.00023302,2]
[321416559,1712177439313,-526.72281173,0.00023303,2]
[321416560,1712177439322,-150.0,0.00023303,2]
[321416561,1712177439331,-150.0,0.00023306,2]
[321416562,1712177439341,-150.0,0.0002331,2]
[321416563,1712177439350,-150.0,0.00023311,2]
[321416564,1712177439359,-150.0,0.00023311,2]
[321416565,1712177439369,-150.0,0.00023314,2]
[321416566,1712177439378,-150.0,0.00023318,2]
[321416567,1712177439388,-168.94,0.00023319,2]
[321416568,1712177439398,-150.0,0.00023323,2]
[321416569,1712177439407,-156.95301816,0.00023323,2]
[321416570,1712177439417,-1316.34244458,0.00023323,2]
[321416571,1712177439427,-526.72281173,0.00023324,2]
[321416572,1712177439437,-150.0,0.00023325,2]
[321416573,1712177439447,-150.0,0.0002333,2]
[321416574,1712177439457,-150.0,0.00023331,2]
[321416575,1712177439466,-150.0,0.00023331,2]
[321416576,1712177439475,-4120.56493453,0.00023338,2]
[321416577,1712177439485,-158.44432576,0.00023339,2]
[321416578,1712177439495,-150.0,0.0002334,2]
[321416579,1712177439505,-150.0,0.00023341,2]
[321416580,1712177439515,-150.0,0.00023343,2]
[321416581,1712177439525,-526.72281173,0.00023344,2]
[321416582,1712177439534,-304.21971482,0.00023346,2]
[321416583,1712177439544,-183.16911616,0.0002335,2]